fUSD/lending_fUSD_20250905
["ID","MTS","AMOUNT","RATE_DAILY","PERIOD"]
[383657496,1757075438669,-400.0,0.00024898,2]
[383657497,1757075438679,-400.0,0.00024898,2]
[383657498,1757075438694,-558.4,0.00024898,2]
[383657499,1757075438704,-400.0,0.00024898,2]
[383657500,1757075438714,-400.0,0.00024898,2]
[383657501,1757075438724,-272.76512848,0.00024898,2]
[383657502,1757075438734,-400.0,0.00024898,2]
[383657503,1757075438744,-400.0,0.00024898,2]
[383657504,1757075438753,-400.0,0.00024898,2]
[383657505,1757075438763,-400.0,0.00024898,2]
[383657506,1757075438772,-407.7,0.00024898,2]
[383657507,1757075438782,-400.0,0.00024898,2]
[383657508,1757075438792,-400.0,0.00024898,2]
[383657509,1757075438801,-400.0,0.00024898,2]
[383657510,1757075438811,-400.0,0.00024898,2]
[383657511,1757075438820,-400.0,0.00024898,2]
[383657512,1757075438830,-400.0,0.00024898,2]
[383657513,1757075438840,-400.0,0.00024898,2]
[383657514,1757075438850,-400.0,0.00024898,2]
[383657515,1757075438859,-400.0,0.00024898,2]
[383657516,1757075438869,-400.0,0.00024898,2]
[383657517,1757075438879,-400.0,0.00024898,2]
[383657518,1757075438888,-400.0,0.00024898,2]
[383657519,1757075438898,-308.83,0.00024898,2]
[383657520,1757075438908,-400.0,0.00024898,2]
[383657521,1757075438917,-1907.14,0.00024898,2]
[383657522,1757075438927,-400.0,0.00024898,2]
[383657523,1757075438937,-400.0,0.00024898,2]
[383657524,1757075438954,-400.0,0.00024898,2]
[383657525,1757075438964,-400.0,0.00024898,2]
[383657526,1757075438973,-400.0,0.00024898,2]
[383657527,1757075438983,-396.10344362,0.00024898,2]
[383657528,1757075438993,-400.0,0.00024898,2]
[383657529,1757075439002,-402.61594242,0.00024898,2]
[383657530,1757075439012,-400.0,0.00024898,2]
[383657531,1757075439022,-400.0,0.00024898,2]
[383657533,1757075439031,-221.48,0.00024898,2]
[383657534,1757075439041,-3901.96,0.00024898,2]
[383657536,1757075439051,-400.0,0.00024898,2]
[383657538,1757075439062,-400.0,0.00024898,2]
[383657540,1757075439071,-400.0,0.00024898,2]
[383657542,1757075439081,-400.0,0.00024898,2]
[383657544,1757075439091,-400.0,0.00024898,2]
[383657546,1757075439101,-400.0,0.00024898,2]
[383657548,1757075439110,-400.0,0.00024898,2]
[383657550,1757075439119,-400.0,0.00024898,2]
[383657552,1757075439130,-400.0,0.00024898,2]
[383657554,1757075439139,-400.0,0.00024898,2]
[383657556,1757075439148,-400.0,0.00024898,2]
[383657558,1757075439158,-400.0,0.00024898,2]
[383657560,1757075439167,-489.45,0.00024898,2]
[383657562,1757075439176,-400.0,0.00024898,2]
[383657564,1757075439186,-400.0,0.00024898,2]
[383657566,1757075439203,-400.0,0.00024898,2]
[383657568,1757075439214,-400.0,0.00024898,2]
[383657570,1757075439224,-505.29,0.00024898,2]
[383657572,1757075439235,-400.0,0.00024898,2]
[383657574,1757075439246,-400.0,0.00024898,2]
[383657576,1757075439257,-402.02246502,0.00024898,2]
[383657578,1757075439268,-400.0,0.00024898,2]
[383657580,1757075439279,-400.0,0.00024898,2]
[383657582,1757075439290,-401.52546348,0.00024898,2]
[383657584,1757075439300,-400.0,0.00024898,2]
[383657586,1757075439310,-2773.36252474,0.00024899,2]
[383657588,1757075439320,-160.0,0.00024899,3]
[383657590,1757075439330,-30239.28817561,0.00024899,3]
[383657639,1757075439816,-400.0,0.00024897,2]
[383657641,1757075439826,-9203.37069086,0.00024899,3]
[383657643,1757075439839,-1733.40809265,0.00024899,3]
[383657685,1757075440211,-400.0,0.00024898,2]
[383657688,1757075440221,-1035.19613842,0.00024899,3]
[383657709,1757075440428,-1600.0,0.00024899,3]
[383657966,1757075443328,-400.0,0.00024897,2]
[383657967,1757075443338,-400.0,0.00024897,2]
[383657968,1757075443348,-400.0,0.00024897,2]
[383657969,1757075443357,-14464.53606979,0.00024899,3]
[383657970,1757075443369,-5634.4906428,0.00024899,3]
[383657972,1757075443384,-1325.87393039,0.00024899,3]
[383658239,1757075446191,-500.0,0.00024897,2]
[383658241,1757075446206,-46.006,0.00024898,2]
[383658243,1757075446218,-353.994,0.00024898,2]
[383658244,1757075446228,-4830.09566846,0.00024899,3]
[383658258,1757075446414,-1437.6249998,0.00024899,3]
[383658260,1757075446425,-2231.484908,0.00024899,3]
[383658264,1757075446472,-332.10728,0.00024899,3]
[383658270,1757075446532,-400.0,0.00024897,2]
[383658271,1757075446542,-1527.41473817,0.00024899,3]
[383658273,1757075446554,-469.5589011,0.00024899,3]
[383658277,1757075446586,-983.50377013,0.00024899,3]
[383659730,1757075587451,166.08,0.00011952,2]
[383659731,1757075587665,166.08,0.00014342,2]
[383659732,1757075587867,166.08,0.00016733,2]
[383659733,1757075588085,166.08,0.00019123,2]
[383659735,1757075862699,165.02,0.00013699,2]
[383659738,1757076160109,-203.687,0.00021513,2]
[383659739,1757076160132,-70.167,0.00021513,2]
[383659740,1757076165203,-95.913,0.00021513,2]
[383659741,1757076232968,283.44178507,0.00030137,120]
[383659743,1757076281925,-253.44120791,0.00020381,2]
[383659744,1757076286225,-170.22,0.00020381,2]
[383659745,1757076292565,-362.226,0.00020381,2]
[383659746,1757076296459,-125.70250222,0.00020381,2]
[383659747,1757076487830,166.08,0.00011857,2]
[383659748,1757076564037,-215.24749778,0.00021513,3]
[383659749,1757076567219,-667.98669963,0.00021513,3]
[383659750,1757076572937,-159.05,0.00021513,3]
[383659751,1757076574949,-214.62680574,0.00021513,3]
[383659752,1757076582207,-400.86586146,0.00021513,3]
[383659753,1757076584494,-342.22313539,0.00021513,3]
[383659754,1757076584516,-211.96057608,0.00021513,3]
[383659755,1757076589156,-216.44582103,0.00021513,3]
[383659756,1757076590879,-500.0,0.00021513,3]
[383659757,1757076597258,-250.0,0.00021513,3]
[383659758,1757076599851,-821.59360289,0.00021513,3]
[383659759,1757076599882,-178.40639711,0.00021513,3]
[383659760,1757076605196,-250.0,0.00021513,3]
[383659761,1757076607994,-285.11446437,0.00021513,3]
[383659762,1757076615107,-265.53132772,0.00021513,3]
[383659763,1757076620823,-1020.9478108,0.00021513,3]
[383659764,1757076620850,-8.75300154,0.00021513,3]
[383659765,1757076622798,-250.60499846,0.00021513,3]
[383659766,1757076622821,-49.39500154,0.000221,2]
[383659767,1757076630185,-117.54499846,0.000221,2]
[383659768,1757076630208,-94.45500154,0.000237,2]
[383659782,1757076632307,-120.54499846,0.000237,2]
[383659784,1757076632317,-218.34,0.00023722,2]
[383659786,1757076632326,-300.0,0.00023755,2]
[383659788,1757076632336,-666.0,0.00023756,3]
[383659790,1757076632345,-160.0,0.0002377,7]
[383659791,1757076632354,-170.08,0.0002391,2]
[383659792,1757076632362,-248.71531821,0.00023986,2]
[383659793,1757076632371,-643.99820123,0.00024,2]
[383659795,1757076632385,-718.78087629,0.00024,2]
[383659797,1757076632397,-1075.43,0.00024,2]
[383659801,1757076632427,-580.71656349,0.00024,2]
[383659803,1757076632436,-105.64687377,0.00024,2]
[383659805,1757076632478,-61.29312623,0.00024,2]
[383659806,1757076632487,-271.34,0.0002411,2]
[383659807,1757076632497,-351.35907377,0.00024172,2]
[383659808,1757076632534,-255.54836253,0.00024172,2]
[383659809,1757076632590,-201.21599814,0.00024172,2]
[383659810,1757076632600,-168.0,0.00024216,2]
[383659811,1757076632610,-206.0,0.0002435,2]
[383659812,1757076632619,-300.0,0.00024383,2]
[383659813,1757076632629,-503.0,0.00024384,2]
[383659814,1757076632638,-157.52532537,0.00024466,2]
[383659815,1757076632648,-782.26545782,0.0002448,2]
[383659816,1757076632659,-505.35332046,0.00024597,2]
[383659817,1757076632671,-882.24061585,0.00024597,2]
[383659818,1757076632687,-1018.15223715,0.00024597,2]
[383659819,1757076632696,-313.84776285,0.000246,8]
[383659821,1757076632708,-186.15223715,0.000246,8]
[383659822,1757076632717,-2159.37869056,0.000246,2]
[383659823,1757076632729,-246.35130944,0.000246,2]
[383659824,1757076632739,-157.52532537,0.0002463,2]
[383659825,1757076632748,-523.97877,0.0002465,2]
[383659826,1757076632757,-1000.0,0.000247,9]
[383659827,1757076632767,-523.97878,0.0002472,2]
[383659828,1757076632776,-882.0,0.0002478,2]
[383659829,1757076632785,-600.0,0.00024781,2]
[383659830,1757076632794,-151.0,0.00024781,2]
[383659831,1757076632803,-769.86575988,0.00024781,2]
[383659832,1757076632812,-600.0,0.00024781,2]
[383659833,1757076632821,-151.0,0.00024781,2]
[383659834,1757076632830,-699.32598667,0.00024781,2]
[383659835,1757076632839,-151.0,0.00024781,2]
[383659836,1757076632848,-151.0,0.00024781,2]
[383659837,1757076632857,-250.0,0.00024781,2]
[383659838,1757076632867,-250.0,0.00024781,2]
[383659839,1757076632876,-160.0,0.00024781,2]
[383659840,1757076632885,-256.5554303,0.00024781,2]
[383659841,1757076632897,-339.17553123,0.00024781,2]
[383659842,1757076632907,-500.0,0.00024781,2]
[383659843,1757076632916,-151.0,0.00024781,2]
[383659844,1757076632926,-224.81049572,0.00024781,2]
[383659845,1757076632935,-276.597,0.00024787,2]
[383659846,1757076632944,-598.27552825,0.00024789,5]
[383659847,1757076632953,-1141.624,0.00024794,2]
[383659848,1757076632963,-157.52532537,0.00024795,2]
[383659849,1757076632972,-172.50884328,0.00024796,2]
[383659850,1757076632982,-847.89448311,0.000248,2]
[383659851,1757076632992,-1500.0,0.000248,9]
[383659852,1757076633001,-213.0,0.0002483,2]
[383659853,1757076633011,-206.0,0.0002483,2]
[383659854,1757076633020,-160.0,0.00024852,2]
[383659855,1757076633029,-212.63008182,0.00024852,2]
[383659856,1757076633040,-2405.73,0.0002487,2]
[383659857,1757076633049,-500.0,0.00024873,2]
[383659858,1757076633059,-500.0,0.00024873,2]
[383659859,1757076633071,-500.0,0.00024873,2]
[383659860,1757076633081,-593.30180596,0.00024873,2]
[383659861,1757076633091,-500.0,0.00024873,2]
[383659862,1757076633101,-500.0,0.00024873,2]
[383659863,1757076633111,-502.78480174,0.00024873,2]
[383659864,1757076633120,-500.0,0.00024873,2]
[383659865,1757076633130,-500.0,0.00024873,2]
[383659866,1757076633140,-461.21,0.00024877,2]
[383659867,1757076633149,-461.21,0.00024877,2]
[383659868,1757076633160,-461.21,0.00024877,2]
[383659869,1757076633170,-260.97,0.00024877,2]
[383659870,1757076633180,-150.0,0.00024878,2]
[383659871,1757076633189,-150.0,0.00024878,2]
[383659872,1757076633199,-150.0,0.00024878,2]
[383659873,1757076633208,-150.0,0.00024878,2]
[383659875,1757076633217,-500.0,0.00024878,2]
[383659876,1757076633227,-500.0,0.00024878,2]
[383659878,1757076633237,-150.0,0.00024878,2]
[383659880,1757076633246,-500.0,0.00024878,2]
[383659882,1757076633256,-500.0,0.00024878,2]
[383659884,1757076633265,-200.0,0.00024878,2]
[383659886,1757076633275,-200.0,0.00024878,2]
[383659888,1757076633284,-280.37053649,0.00024878,2]
[383659890,1757076633293,-150.0,0.00024878,2]
[383659892,1757076633303,-150.0,0.00024878,2]
[383659894,1757076633312,-150.0,0.00024878,2]
[383659896,1757076633321,-150.0,0.00024878,2]
[383659898,1757076633330,-150.0,0.00024878,2]
[383659900,1757076633339,-188.19902065,0.00024878,2]
[383659902,1757076633348,-461.21,0.00024879,2]
[383659904,1757076633358,-461.21,0.00024879,2]
[383659906,1757076633367,-21047.7783983,0.00024879,2]
[383659908,1757076633377,-210.0,0.0002488,2]
[383659910,1757076633387,-21047.7783983,0.0002488,2]
[383659913,1757076633397,-21047.7783983,0.00024881,2]
[383659915,1757076633407,-151.0,0.00024884,7]
[383659916,1757076633416,-9683.1426113,0.00024885,2]
[383659918,1757076633425,-35003.57300903,0.00024886,2]
[383659921,1757076633438,-7091.98378747,0.00024886,2]
[383659923,1757076633447,-189.80086154,0.00024886,2]
[383659925,1757076633456,-400.0,0.00024886,2]
[383659927,1757076633466,-400.0,0.00024886,2]
[383659929,1757076633475,-400.0,0.00024886,2]
[383659931,1757076633485,-400.0,0.00024886,2]
[383659933,1757076633495,-400.0,0.00024886,2]
[383659935,1757076633504,-489.00787635,0.00024886,2]
[383659937,1757076633513,-400.0,0.00024886,2]
[383659939,1757076633523,-410.05834898,0.00024886,2]
[383659941,1757076633532,-400.0,0.00024886,2]
[383659943,1757076633541,-400.0,0.00024886,2]
[383659945,1757076633551,-400.0,0.00024886,2]
[383659947,1757076633560,-401.72368471,0.00024886,2]
[383659949,1757076633569,-17227.42194142,0.00024887,2]
[383659951,1757076633582,-2550.02807154,0.00024887,2]
[383660427,1757076638319,-400.0,0.00024886,2]
[383660429,1757076638330,-400.0,0.00024886,2]
[383660431,1757076638340,-659.50309689,0.00024887,2]
[383660458,1757076638586,-542.46609112,0.00024887,2]
[383660461,1757076638597,-68.35919733,0.00024887,2]
[383660463,1757076638607,-534.08455525,0.00024887,2]
[383660465,1757076638617,-2415.52777085,0.00024887,2]
[383660649,1757076641051,-73.237332,0.00024788,2]
[383660651,1757076641063,-479.98792246,0.00024788,2]
[383660653,1757076641077,-2090.792,0.00024788,2]
[383660858,1757076646696,-17521.77794113,0.00024788,2]
[383660859,1757076646706,-308.77000538,0.00024886,2]
[383660860,1757076646717,-400.0,0.00024886,2]
[383660861,1757076646726,-500.0,0.00024886,2]
[383660862,1757076646736,-400.0,0.00024886,2]
[383660863,1757076646746,-144384.8364619,0.00024887,2]
[383660864,1757076646756,-400.0,0.00024888,2]
[383660865,1757076646770,-400.0,0.00024888,2]
[383660866,1757076646780,-400.0,0.00024888,2]
[383660867,1757076646789,-400.0,0.00024888,2]
[383660868,1757076646799,-400.0,0.00024888,2]
[383660869,1757076646809,-400.0,0.00024888,2]
[383660870,1757076646818,-400.0,0.00024888,2]
[383660871,1757076646828,-400.0,0.00024888,2]
[383660872,1757076646839,-400.0,0.00024888,2]
[383660873,1757076646849,-400.0,0.00024888,2]
[383660874,1757076646859,-400.0,0.00024888,2]
[383660875,1757076646868,-400.0,0.00024888,2]
[383660876,1757076646878,-400.0,0.00024888,2]
[383660877,1757076646890,-432.14726218,0.00024888,2]
[383660878,1757076646903,-3226.51,0.00024888,2]
[383660879,1757076646917,-400.0,0.00024888,2]
[383660880,1757076646926,-515.52155437,0.00024888,2]
[383660881,1757076646936,-400.0,0.00024888,2]
[383660882,1757076646946,-400.0,0.00024888,2]
[383660883,1757076646956,-400.0,0.00024888,2]
[383660884,1757076646966,-400.0,0.00024888,2]
[383660885,1757076646976,-5407.22,0.00024888,2]
[383660886,1757076646986,-503.61,0.00024888,2]
[383660887,1757076646996,-422.63,0.00024888,2]
[383660888,1757076647009,-400.0,0.00024888,2]
[383660889,1757076647020,-400.0,0.00024888,2]
[383660890,1757076647029,-894.23,0.00024888,2]
[383660891,1757076647039,-400.0,0.00024888,2]
[383660892,1757076647049,-400.0,0.00024888,2]
[383660893,1757076647059,-659.25,0.00024888,2]
[383660894,1757076647069,-400.0,0.00024888,2]
[383660896,1757076647082,-400.0,0.00024888,2]
[383660898,1757076647092,-400.0,0.00024888,2]
[383660900,1757076647107,-400.0,0.00024888,2]
[383660902,1757076647123,-400.0,0.00024888,2]
[383660904,1757076647133,-400.0,0.00024888,2]
[383660906,1757076647142,-400.0,0.00024888,2]
[383660908,1757076647152,-400.0,0.00024888,2]
[383660910,1757076647163,-400.0,0.00024888,2]
[383660913,1757076647172,-400.0,0.00024888,2]
[383660915,1757076647182,-400.0,0.00024888,2]
[383660917,1757076647191,-400.0,0.00024888,2]
[383660919,1757076647201,-63143.3351948,0.00024889,2]
[383660921,1757076647211,-173.30001181,0.00024889,2]
[383660923,1757076647221,-400.0,0.00024889,2]
[383660925,1757076647231,-400.0,0.00024889,2]
[383660927,1757076647240,-400.0,0.00024889,2]
[383660929,1757076647252,-500.0,0.00024889,2]
[383660931,1757076647262,-400.0,0.00024889,2]
[383660933,1757076647272,-400.0,0.00024889,2]
[383660935,1757076647281,-400.0,0.00024889,2]
[383660937,1757076647291,-400.0,0.00024889,2]
[383660939,1757076647300,-400.0,0.00024889,2]
[383660941,1757076647309,-400.0,0.00024889,2]
[383660943,1757076647319,-400.0,0.00024889,2]
[383660945,1757076647329,-400.0,0.00024889,2]
[383660947,1757076647338,-400.0,0.00024889,2]
[383660949,1757076647348,-239.9957884,0.00024889,2]
[383660951,1757076647357,-400.0,0.00024889,2]
[383660953,1757076647367,-400.0,0.00024889,2]
[383660955,1757076647376,-400.0,0.00024889,2]
[383660958,1757076647386,-400.0,0.00024889,2]
[383660960,1757076647395,-400.0,0.00024889,2]
[383660962,1757076647405,-400.0,0.00024889,2]
[383660964,1757076647416,-400.0,0.00024889,2]
[383660966,1757076647425,-400.0,0.00024889,2]
[383660968,1757076647435,-400.0,0.00024889,2]
[383660970,1757076647444,-400.0,0.00024889,2]
[383660972,1757076647454,-400.0,0.00024889,2]
[383660974,1757076647463,-400.0,0.00024889,2]
[383660976,1757076647472,-405.034363,0.00024889,2]
[383660978,1757076647483,-400.0,0.00024889,2]
[383660980,1757076647493,-400.0,0.00024889,2]
[383660982,1757076647503,-400.0,0.00024889,2]
[383660984,1757076647513,-400.0,0.00024889,2]
[383660986,1757076647523,-400.0,0.00024889,2]
[383660988,1757076647532,-400.0,0.00024889,2]
[383660990,1757076647541,-400.0,0.00024889,2]
[383660992,1757076647551,-400.0,0.00024889,2]
[383660994,1757076647560,-160.293361,0.00024889,2]
[383660996,1757076647570,-400.0,0.00024889,2]
[383660998,1757076647580,-400.0,0.00024889,2]
[383661000,1757076647589,-400.0,0.00024889,2]
[383661002,1757076647599,-400.0,0.00024889,2]
[383661004,1757076647608,-400.0,0.00024889,2]
[383661006,1757076647618,-400.0,0.00024889,2]
[383661008,1757076647627,-400.0,0.00024889,2]
[383661010,1757076647636,-400.0,0.00024889,2]
[383661012,1757076647646,-972.37,0.00024889,2]
[383661014,1757076647656,-400.0,0.00024889,2]
[383661017,1757076647667,-400.0,0.00024889,2]
[383661019,1757076647676,-400.0,0.00024889,2]
[383661021,1757076647687,-575.37,0.00024889,2]
[383661023,1757076647697,-400.0,0.00024889,2]
[383661025,1757076647707,-400.0,0.00024889,2]
[383661027,1757076647717,-400.0,0.00024889,2]
[383661029,1757076647726,-400.0,0.00024889,2]
[383661031,1757076647735,-400.0,0.00024889,2]
[383661033,1757076647744,-400.0,0.00024889,2]
[383661035,1757076647754,-400.0,0.00024889,2]
[383661037,1757076647763,-491.41305165,0.00024889,2]
[383661039,1757076647772,-400.0,0.00024889,2]
[383661041,1757076647782,-400.0,0.00024889,2]
[383661043,1757076647791,-467.28411387,0.00024889,2]
[383661045,1757076647801,-400.0,0.00024889,2]
[383661047,1757076647810,-400.0,0.00024889,2]
[383661049,1757076647820,-400.0,0.00024889,2]
[383661051,1757076647830,-400.0,0.00024889,2]
[383661053,1757076647839,-400.0,0.00024889,2]
[383661055,1757076647849,-400.0,0.00024889,2]
[383661057,1757076647858,-404.80931081,0.00024889,2]
[383661059,1757076647868,-400.0,0.00024889,2]
[383661061,1757076647877,-403.96248277,0.00024889,2]
[383661063,1757076647887,-400.0,0.00024889,2]
[383661065,1757076647896,-400.0,0.00024889,2]
[383661067,1757076647906,-400.0,0.00024889,2]
[383661069,1757076647916,-400.0,0.00024889,2]
[383661071,1757076647925,-400.0,0.00024889,2]
[383661074,1757076647941,-400.0,0.00024889,2]
[383661077,1757076647955,-400.0,0.00024889,2]
[383661079,1757076647965,-400.0,0.00024889,2]
[383661081,1757076647974,-400.0,0.00024889,2]
[383661083,1757076647985,-399.34361154,0.00024889,2]
[383661085,1757076647995,-400.0,0.00024889,2]
[383661087,1757076648006,-400.0,0.00024889,2]
[383661089,1757076648015,-762.3,0.00024889,2]
[383661091,1757076648025,-400.0,0.00024889,2]
[383661093,1757076648035,-400.0,0.00024889,2]
[383661095,1757076648045,-400.0,0.00024889,2]
[383661097,1757076648055,-401.72225388,0.00024889,2]
[383661099,1757076648064,-400.0,0.00024889,2]
[383661101,1757076648074,-400.0,0.00024889,2]
[383661103,1757076648084,-400.0,0.00024889,2]
[383661105,1757076648094,-400.0,0.00024889,2]
[383661107,1757076648103,-400.0,0.00024889,2]
[383661109,1757076648113,-400.0,0.00024889,2]
[383661111,1757076648123,-405.55375774,0.00024889,2]
[383661113,1757076648133,-400.0,0.00024889,2]
[383661115,1757076648142,-203.1783341,0.00024889,2]
[383661117,1757076648152,-400.0,0.00024889,2]
[383661120,1757076648163,-400.0,0.00024889,2]
[383661122,1757076648172,-400.0,0.00024889,2]
[383661124,1757076648182,-400.0,0.00024889,2]
[383661126,1757076648192,-400.0,0.00024889,2]
[383661127,1757076648202,-400.0,0.00024889,2]
[383661130,1757076648212,-400.0,0.00024889,2]
[383661132,1757076648222,-400.0,0.00024889,2]
[383661134,1757076648231,-400.0,0.00024889,2]
[383661135,1757076648240,-400.0,0.00024889,2]
[383661138,1757076648250,-400.0,0.00024889,2]
[383661140,1757076648260,-400.0,0.00024889,2]
[383661142,1757076648269,-400.0,0.00024889,2]
[383661144,1757076648279,-404.23386964,0.00024889,2]
[383661146,1757076648289,-1316.46,0.00024889,2]
[383661148,1757076648299,-400.0,0.00024889,2]
[383661150,1757076648309,-400.0,0.00024889,2]
[383661152,1757076648319,-400.0,0.00024889,2]
[383661154,1757076648329,-400.0,0.00024889,2]
[383661156,1757076648339,-400.0,0.00024889,2]
[383661158,1757076648349,-400.0,0.00024889,2]
[383661160,1757076648359,-403.72903108,0.00024889,2]
[383661162,1757076648369,-402.50214779,0.00024889,2]
[383661164,1757076648379,-400.0,0.00024889,2]
[383661167,1757076648393,-528.55,0.00024889,2]
[383661169,1757076648404,-403.86204539,0.00024889,2]
[383661171,1757076648416,-400.0,0.00024889,2]
[383661173,1757076648426,-403.00047197,0.00024889,2]
[383661175,1757076648436,-400.0,0.00024889,2]
[383661177,1757076648446,-400.0,0.00024889,2]
[383661179,1757076648456,-400.0,0.00024889,2]
[383661181,1757076648466,-400.0,0.00024889,2]
[383661183,1757076648475,-400.0,0.00024889,2]
[383661185,1757076648485,-400.0,0.00024889,2]
[383661187,1757076648495,-400.0,0.00024889,2]
[383661189,1757076648504,-400.0,0.00024889,2]
[383661191,1757076648514,-400.0,0.00024889,2]
[383661193,1757076648523,-400.0,0.00024889,2]
[383661195,1757076648534,-403.71864757,0.00024889,2]
[383661197,1757076648543,-400.0,0.00024889,2]
[383661200,1757076648553,-404.09708915,0.00024889,2]
[383661202,1757076648563,-403.24383083,0.00024889,2]
[383661204,1757076648573,-400.0,0.00024889,2]
[383661206,1757076648583,-400.0,0.00024889,2]
[383661208,1757076648593,-400.0,0.00024889,2]
[383661210,1757076648603,-402.54738601,0.00024889,2]
[383661212,1757076648612,-400.0,0.00024889,2]
[383661214,1757076648622,-400.0,0.00024889,2]
[383661216,1757076648631,-400.0,0.00024889,2]
[383661218,1757076648640,-400.0,0.00024889,2]
[383661220,1757076648650,-400.0,0.00024889,2]
[383661222,1757076648660,-184.341349,0.00024889,2]
[383661224,1757076648669,-400.0,0.00024889,2]
[383661226,1757076648679,-400.0,0.00024889,2]
[383661228,1757076648688,-400.0,0.00024889,2]
[383661230,1757076648698,-400.0,0.00024889,2]
[383661232,1757076648708,-400.0,0.00024889,2]
[383661234,1757076648718,-400.0,0.00024889,2]
[383661236,1757076648727,-404.58365184,0.00024889,2]
[383661238,1757076648737,-400.0,0.00024889,2]
[383661240,1757076648746,-400.0,0.00024889,2]
[383661242,1757076648755,-400.0,0.00024889,2]
[383661244,1757076648765,-403.07836505,0.00024889,2]
[383661246,1757076648775,-400.0,0.00024889,2]
[383661248,1757076648784,-400.0,0.00024889,2]
[383661250,1757076648794,-400.0,0.00024889,2]
[383661252,1757076648803,-400.0,0.00024889,2]
[383661254,1757076648813,-400.0,0.00024889,2]
[383661257,1757076648822,-534.66,0.00024889,2]
[383661259,1757076648835,-678.71,0.00024889,2]
[383661261,1757076648845,-815.24,0.00024889,2]
[383661263,1757076648854,-400.0,0.00024889,2]
[383661265,1757076648864,-416.93210786,0.00024889,2]
[383661267,1757076648874,-400.0,0.00024889,2]
[383661269,1757076648883,-400.0,0.00024889,2]
[383661271,1757076648892,-404.84357337,0.00024889,2]
[383661274,1757076648901,-400.0,0.00024889,2]
[383661276,1757076648909,-401.41927009,0.00024889,2]
[383661278,1757076648920,-400.0,0.00024889,2]
[383661280,1757076648929,-400.0,0.00024889,2]
[383661282,1757076648937,-400.0,0.00024889,2]
[383661284,1757076648944,-400.0,0.00024889,2]
[383661286,1757076648952,-400.0,0.00024889,2]
[383661288,1757076648960,-400.0,0.00024889,2]
[383661290,1757076648969,-400.0,0.00024889,2]
[383661292,1757076648978,-400.0,0.00024889,2]
[383661294,1757076648989,-400.0,0.00024889,2]
[383661296,1757076648999,-400.0,0.00024889,2]
[383661298,1757076649009,-400.0,0.00024889,2]
[383661300,1757076649018,-400.0,0.00024889,2]
[383661302,1757076649029,-400.0,0.00024889,2]
[383661304,1757076649038,-400.0,0.00024889,2]
[383661306,1757076649048,-400.0,0.00024889,2]
[383661308,1757076649057,-400.0,0.00024889,2]
[383661310,1757076649067,-400.0,0.00024889,2]
[383661312,1757076649080,-400.0,0.00024889,2]
[383661314,1757076649090,-500.0,0.00024889,2]
[383661316,1757076649099,-400.0,0.00024889,2]
[383661318,1757076649109,-400.0,0.00024889,2]
[383661320,1757076649120,-500.0,0.00024889,2]
[383661322,1757076649129,-401.93419801,0.00024889,2]
[383661324,1757076649139,-413.65616126,0.00024889,2]